[Event "*** Titled Tuesday Blitz"]
[Site "Chess.com"]
[Date "2019.10.01"]
[Round "4"]
[White "KhalilMousavi77"]
[Black "Didici"]
[Result "0-1"]
[WhiteElo "2800"]
[BlackElo "2633"]
[TimeControl "180+2"]
[EndTime "13:55:36 PDT"]
[Termination "Didici won by resignation"]

1. d4 {[%clk 0:02:40.3]} 1... f5 {[%clk 0:02:56.4]} 2. Nc3 {[%clk 0:02:36.8]}
2... Nf6 {[%clk 0:02:57.3]} 3. Bg5 {[%clk 0:02:38.2]} 3... d5 {[%clk 0:02:57.6]}
4. e3 {[%clk 0:02:36.9]} 4... Be6 {[%clk 0:02:56.8]} 5. Bd3 {[%clk 0:02:34.9]}
5... Nbd7 {[%clk 0:02:54.5]} 6. Nge2 {[%clk 0:02:35.2]} 6... g6 {[%clk
0:02:55.3]} 7. Nf4 {[%clk 0:02:36.1]} 7... Bf7 {[%clk 0:02:52.4]} 8. Bxf6 {[%clk
0:02:34.5]} 8... Nxf6 {[%clk 0:02:44.5]} 9. h4 {[%clk 0:02:36.2]} 9... Qd7
{[%clk 0:02:38.1]} 10. Qe2 {[%clk 0:02:26.2]} 10... e6 {[%clk 0:02:33.1]} 11. a3
{[%clk 0:02:09]} 11... Bd6 {[%clk 0:02:30.1]} 12. Nb5 {[%clk 0:02:02]} 12... Be7
{[%clk 0:02:28.1]} 13. c4 {[%clk 0:02:01.2]} 13... Ne4 {[%clk 0:02:15.9]} 14.
Bxe4 {[%clk 0:01:56.8]} 14... fxe4 {[%clk 0:02:11.5]} 15. Rc1 {[%clk 0:01:45.8]}
15... c6 {[%clk 0:02:10.7]} 16. Nc3 {[%clk 0:01:46.9]} 16... O-O {[%clk
0:01:55.1]} 17. Qg4 {[%clk 0:01:38.8]} 17... Qd6 {[%clk 0:01:50]} 18. h5 {[%clk
0:01:29.3]} 18... g5 {[%clk 0:01:48.1]} 19. h6 {[%clk 0:01:27.4]} 19... e5
{[%clk 0:01:46.4]} 20. c5 {[%clk 0:01:26.1]} 20... Qf6 {[%clk 0:01:43.6]} 21.
Nh5 {[%clk 0:01:08.5]} 21... Bxh5 {[%clk 0:01:42.5]} 22. Rxh5 {[%clk 0:00:56.6]}
22... exd4 {[%clk 0:01:27.7]} 23. Nd1 {[%clk 0:00:51.5]} 23... dxe3 {[%clk
0:01:24.7]} 24. Rc2 {[%clk 0:00:47.1]} 24... exf2+ {[%clk 0:01:03.6]} 25. Rxf2
{[%clk 0:00:49]} 25... Qg6 {[%clk 0:01:03.1]} 26. b4 {[%clk 0:00:41.1]} 26...
Rxf2 {[%clk 0:00:56.7]} 27. Nxf2 {[%clk 0:00:43]} 27... e3 {[%clk 0:00:52.1]}
28. Nd1 {[%clk 0:00:43.8]} 28... Re8 {[%clk 0:00:46]} 29. Rh3 {[%clk 0:00:41.9]}
29... e2 {[%clk 0:00:29]} 30. Nc3 {[%clk 0:00:23]} 30... Bf6 {[%clk 0:00:26.5]}
31. Nxe2 {[%clk 0:00:24.2]} 31... d4 {[%clk 0:00:20.1]} 32. Qd7 {[%clk
0:00:17.5]} 32... Qe4 {[%clk 0:00:17.9]} 0-1

[Event "*** Titled Tuesday Blitz"]
[Site "Chess.com"]
[Date "2019.10.01"]
[Round "4"]
[White "Aariow"]
[Black "gmcorrales"]
[Result "1-0"]
[WhiteElo "2441"]
[BlackElo "2733"]
[TimeControl "180+2"]
[EndTime "13:55:37 PDT"]
[Termination "Aariow won by checkmate"]

1. Nf3 {[%clk 0:03:01.9]} 1... d6 {[%clk 0:02:59.6]} 2. d4 {[%clk 0:03:02]} 2...
Nf6 {[%clk 0:03:01.2]} 3. g3 {[%clk 0:03:03.3]} 3... Bf5 {[%clk 0:03:02.5]} 4.
Bg2 {[%clk 0:03:04.1]} 4... c6 {[%clk 0:03:01.6]} 5. O-O {[%clk 0:03:04.9]} 5...
Qb6 {[%clk 0:03:01.6]} 6. Nh4 {[%clk 0:03:05.1]} 6... Bg4 {[%clk 0:03:01.9]} 7.
h3 {[%clk 0:03:04.8]} 7... Be6 {[%clk 0:03:02.2]} 8. e4 {[%clk 0:03:02.5]} 8...
g6 {[%clk 0:03:03.1]} 9. Nc3 {[%clk 0:03:02.8]} 9... Bg7 {[%clk 0:03:03.9]} 10.
a3 {[%clk 0:02:59.8]} 10... a5 {[%clk 0:03:04.5]} 11. Re1 {[%clk 0:02:48]} 11...
O-O {[%clk 0:03:04.7]} 12. d5 {[%clk 0:02:39]} 12... Bd7 {[%clk 0:03:04.9]} 13.
Be3 {[%clk 0:02:27.2]} 13... Qxb2 {[%clk 0:03:05.4]} 14. Na4 {[%clk 0:02:22.6]}
14... Qb5 {[%clk 0:03:05.4]} 15. Nb6 {[%clk 0:02:24.2]} 15... c5 {[%clk
0:02:48.9]} 16. Nxa8 {[%clk 0:02:22.8]} 16... Qa6 {[%clk 0:02:49.5]} 17. e5
{[%clk 0:02:04.6]} 17... Ne8 {[%clk 0:02:49.8]} 18. e6 {[%clk 0:02:02.7]} 18...
fxe6 {[%clk 0:02:49]} 19. dxe6 {[%clk 0:02:03.9]} 19... Bc6 {[%clk 0:02:48.8]}
20. Rb1 {[%clk 0:01:51.3]} 20... Qxa8 {[%clk 0:02:38.8]} 21. c4 {[%clk
0:01:52.3]} 21... Bxg2 {[%clk 0:02:38.4]} 22. Nxg2 {[%clk 0:01:53.9]} 22... Nc7
{[%clk 0:02:38.3]} 23. Nf4 {[%clk 0:01:54.6]} 23... Nc6 {[%clk 0:02:39.1]} 24.
h4 {[%clk 0:01:46.1]} 24... Be5 {[%clk 0:02:37.3]} 25. h5 {[%clk 0:01:44.7]}
25... g5 {[%clk 0:02:35.7]} 26. Nd5 {[%clk 0:01:45.8]} 26... Nxe6 {[%clk
0:02:32]} 27. Qg4 {[%clk 0:01:46.7]} 27... Ned4 {[%clk 0:02:22.6]} 28. f4 {[%clk
0:01:17.7]} 28... Bf6 {[%clk 0:02:21.6]} 29. Nxf6+ {[%clk 0:01:11.9]} 29... exf6
{[%clk 0:02:22]} 30. Bxd4 {[%clk 0:01:10.2]} 30... Nxd4 {[%clk 0:02:23]} 31.
fxg5 {[%clk 0:01:09.3]} 31... fxg5 {[%clk 0:02:23.3]} 32. Re7 {[%clk 0:01:04]}
32... Nf3+ {[%clk 0:02:19.2]} 33. Kg2 {[%clk 0:00:53.8]} 33... b5 {[%clk
0:02:20.2]} 34. Kh3 {[%clk 0:00:25.2]} 34... Kh8 {[%clk 0:01:56.4]} 35. Rxb5
{[%clk 0:00:17.6]} 35... Ne5 {[%clk 0:01:54.8]} 36. Rbb7 {[%clk 0:00:14.2]}
36... Qxb7 {[%clk 0:01:54]} 37. Rxb7 {[%clk 0:00:15.3]} 37... Nxg4 {[%clk
0:01:54.8]} 38. Kxg4 {[%clk 0:00:17.2]} 38... h6 {[%clk 0:01:49.7]} 39. Ra7
{[%clk 0:00:15.1]} 39... Rf1 {[%clk 0:01:44.4]} 40. Rxa5 {[%clk 0:00:15.9]}
40... Kg7 {[%clk 0:01:45.8]} 41. Ra7+ {[%clk 0:00:16.3]} 41... Kf6 {[%clk
0:01:45.8]} 42. Rh7 {[%clk 0:00:17.8]} 42... Ke5 {[%clk 0:01:44.8]} 43. Rxh6
{[%clk 0:00:19.3]} 43... Rc1 {[%clk 0:01:46.7]} 44. Kxg5 {[%clk 0:00:20]} 44...
Rxc4 {[%clk 0:01:47.6]} 45. Rh8 {[%clk 0:00:21.2]} 45... Rc3 {[%clk 0:01:45]}
46. Re8+ {[%clk 0:00:21.4]} 46... Kd4 {[%clk 0:01:45.4]} 47. g4 {[%clk 0:00:23]}
47... Rxa3 {[%clk 0:01:46.1]} 48. h6 {[%clk 0:00:24.2]} 48... Rh3 {[%clk
0:01:46.4]} 49. Kg6 {[%clk 0:00:21]} 49... c4 {[%clk 0:01:47.7]} 50. h7 {[%clk
0:00:21.7]} 50... Rh4 {[%clk 0:01:46.8]} 51. g5 {[%clk 0:00:19.7]} 51... c3
{[%clk 0:01:47.3]} 52. h8=Q+ {[%clk 0:00:21.1]} 52... Rxh8 {[%clk 0:01:48]} 53.
Rxh8 {[%clk 0:00:23]} 53... d5 {[%clk 0:01:49.7]} 54. Kf5 {[%clk 0:00:22.9]}
54... Kd3 {[%clk 0:01:49.3]} 55. g6 {[%clk 0:00:24.1]} 55... d4 {[%clk
0:01:49.9]} 56. g7 {[%clk 0:00:25]} 56... c2 {[%clk 0:01:51.8]} 57. Rh1 {[%clk
0:00:25.5]} 57... Kc3 {[%clk 0:01:52.6]} 58. g8=Q {[%clk 0:00:26.3]} 58... d3
{[%clk 0:01:54.5]} 59. Qg7+ {[%clk 0:00:27.1]} 59... Kd2 {[%clk 0:01:55.3]} 60.
Qb2 {[%clk 0:00:24.1]} 60... Ke2 {[%clk 0:01:56.3]} 61. Rc1 {[%clk 0:00:24.3]}
61... Kd2 {[%clk 0:01:57]} 62. Ke4 {[%clk 0:00:24.1]} 62... Ke2 {[%clk
0:01:57.8]} 63. Rxc2+ {[%clk 0:00:25.4]} 63... dxc2 {[%clk 0:01:57.8]} 64. Qxc2+
{[%clk 0:00:27.3]} 64... Kf1 {[%clk 0:01:59.6]} 65. Kf3 {[%clk 0:00:28.3]} 65...
Kg1 {[%clk 0:02:00.8]} 66. Qg2# {[%clk 0:00:29.3]} 1-0

[Event "*** Titled Tuesday Blitz"]
[Site "Chess.com"]
[Date "2019.10.01"]
[Round "4"]
[White "pedroholly22"]
[Black "googlegoom"]
[Result "1-0"]
[WhiteElo "2332"]
[BlackElo "2484"]
[TimeControl "180+2"]
[EndTime "13:55:53 PDT"]
[Termination "pedroholly22 won by resignation"]

1. e4 {[%clk 0:03:01.9]} 1... c5 {[%clk 0:03:01]} 2. Nf3 {[%clk 0:03:02.2]} 2...
Nc6 {[%clk 0:03:02.1]} 3. d4 {[%clk 0:03:03.7]} 3... cxd4 {[%clk 0:03:03.3]} 4.
Nxd4 {[%clk 0:03:05.6]} 4... Qb6 {[%clk 0:03:04.8]} 5. Nb3 {[%clk 0:03:05.4]}
5... Nf6 {[%clk 0:03:06.2]} 6. Bd3 {[%clk 0:03:03.1]} 6... e6 {[%clk 0:03:06.9]}
7. O-O {[%clk 0:03:02.6]} 7... d5 {[%clk 0:03:08.1]} 8. Nc3 {[%clk 0:03:02.4]}
8... dxe4 {[%clk 0:03:08.2]} 9. Nxe4 {[%clk 0:03:03.1]} 9... Be7 {[%clk
0:03:08.9]} 10. Be3 {[%clk 0:03:01.8]} 10... Qc7 {[%clk 0:03:09.8]} 11. h3
{[%clk 0:02:56.8]} 11... O-O {[%clk 0:03:09.6]} 12. c3 {[%clk 0:02:57.1]} 12...
b6 {[%clk 0:03:08.2]} 13. Qf3 {[%clk 0:02:52.1]} 13... Bb7 {[%clk 0:03:07.1]}
14. Bf4 {[%clk 0:02:50.7]} 14... e5 {[%clk 0:02:55.9]} 15. Bh2 {[%clk 0:02:51]}
15... Rad8 {[%clk 0:02:28.2]} 16. Nxf6+ {[%clk 0:02:44.4]} 16... Bxf6 {[%clk
0:02:28.9]} 17. Qf5 {[%clk 0:02:43.9]} 17... Rfe8 {[%clk 0:02:14.9]} 18. Qxh7+
{[%clk 0:02:43]} 18... Kf8 {[%clk 0:02:16.4]} 19. Rae1 {[%clk 0:02:39.1]} 19...
Ne7 {[%clk 0:00:55.7]} 20. Bb5 {[%clk 0:02:27.2]} 20... Bc6 {[%clk 0:00:54.6]}
21. Bxc6 {[%clk 0:02:26]} 21... Nxc6 {[%clk 0:00:55.9]} 22. Re3 {[%clk
0:02:22.9]} 22... g6 {[%clk 0:00:54.3]} 23. Rf3 {[%clk 0:02:18.3]} 23... Ke7
{[%clk 0:00:52.8]} 24. Qh6 {[%clk 0:02:04.9]} 24... Qd6 {[%clk 0:00:41.2]} 25.
Bg3 {[%clk 0:01:58.4]} 25... Rh8 {[%clk 0:00:37.2]} 26. Qe3 {[%clk 0:01:58.5]}
26... Kf8 {[%clk 0:00:37.8]} 27. Nd2 {[%clk 0:01:49.1]} 27... Bh4 {[%clk
0:00:26.8]} 28. Ne4 {[%clk 0:01:49.3]} 28... Qe7 {[%clk 0:00:22.9]} 29. Bxh4
{[%clk 0:01:41.2]} 29... Rxh4 {[%clk 0:00:23.7]} 30. Ng3 {[%clk 0:01:13.6]}
30... Kg7 {[%clk 0:00:24]} 31. Re1 {[%clk 0:01:13.3]} 31... Qd6 {[%clk
0:00:22.7]} 32. Qe2 {[%clk 0:01:12.6]} 32... f6 {[%clk 0:00:19.6]} 33. Ne4
{[%clk 0:01:09.5]} 33... Rxe4 {[%clk 0:00:14.8]} 34. Qxe4 {[%clk 0:01:10.2]}
34... f5 {[%clk 0:00:16.4]} 35. Qe2 {[%clk 0:01:05.8]} 35... e4 {[%clk
0:00:17.8]} 36. Rg3 {[%clk 0:01:06.7]} 36... Ne5 {[%clk 0:00:18.4]} 37. h4
{[%clk 0:00:57.4]} 37... Nd3 {[%clk 0:00:15.6]} 38. Rf1 {[%clk 0:00:56.2]} 38...
Rh8 {[%clk 0:00:16.2]} 39. Rd1 {[%clk 0:00:46.6]} 39... Rxh4 {[%clk 0:00:14.6]}
40. Rdxd3 {[%clk 0:00:47.1]} 40... exd3 {[%clk 0:00:15.9]} 41. Qxd3 {[%clk
0:00:48.7]} 41... Qxd3 {[%clk 0:00:12.7]} 42. Rxd3 {[%clk 0:00:49.4]} 42... Ra4
{[%clk 0:00:14.6]} 43. a3 {[%clk 0:00:50.3]} 43... Kf6 {[%clk 0:00:15.7]} 44.
Rd6+ {[%clk 0:00:50.6]} 44... Kg5 {[%clk 0:00:16.6]} 45. g3 {[%clk 0:00:51.4]}
45... Ra5 {[%clk 0:00:17.7]} 46. Kg2 {[%clk 0:00:51.5]} 46... Rb5 {[%clk
0:00:17.6]} 47. b4 {[%clk 0:00:52.4]} 47... Re5 {[%clk 0:00:17.6]} 48. f4+
{[%clk 0:00:53]} 1-0

[Event "*** Titled Tuesday Blitz"]
[Site "Chess.com"]
[Date "2019.10.01"]
[Round "4"]
[White "ferdipy"]
[Black "abubakrtagelsir"]
[Result "0-1"]
[WhiteElo "2168"]
[BlackElo "2389"]
[TimeControl "180+2"]
[EndTime "13:55:53 PDT"]
[Termination "abubakrtagelsir won by checkmate"]

1. d4 {[%clk 0:03:01.9]} 1... d5 {[%clk 0:03:00.5]} 2. c4 {[%clk 0:03:02]} 2...
c6 {[%clk 0:03:01.2]} 3. Nc3 {[%clk 0:03:02.6]} 3... Nf6 {[%clk 0:03:02.3]} 4.
cxd5 {[%clk 0:03:02.2]} 4... cxd5 {[%clk 0:03:02.8]} 5. Bg5 {[%clk 0:03:03.4]}
5... Nc6 {[%clk 0:03:03.7]} 6. e3 {[%clk 0:03:03.5]} 6... a6 {[%clk 0:03:01.8]}
7. Bd3 {[%clk 0:03:03.1]} 7... e6 {[%clk 0:03:02]} 8. Nf3 {[%clk 0:03:02.9]}
8... Be7 {[%clk 0:03:02.2]} 9. Rc1 {[%clk 0:03:01.2]} 9... h6 {[%clk 0:03:02.8]}
10. Bh4 {[%clk 0:02:59.9]} 10... Bd7 {[%clk 0:03:03.6]} 11. h3 {[%clk
0:02:58.8]} 11... Rc8 {[%clk 0:03:03.4]} 12. O-O {[%clk 0:02:59.5]} 12... Qb6
{[%clk 0:03:03.8]} 13. Qe2 {[%clk 0:02:57.7]} 13... Qa5 {[%clk 0:02:28.5]} 14.
Ne5 {[%clk 0:02:41.5]} 14... Nxe5 {[%clk 0:02:25]} 15. dxe5 {[%clk 0:02:42.2]}
15... Ng8 {[%clk 0:02:25.6]} 16. Bxe7 {[%clk 0:02:36.7]} 16... Nxe7 {[%clk
0:02:26]} 17. Qg4 {[%clk 0:02:36.7]} 17... O-O {[%clk 0:02:13.2]} 18. f4 {[%clk
0:02:34.8]} 18... Qb6 {[%clk 0:02:12.3]} 19. Qe2 {[%clk 0:02:28.9]} 19... d4
{[%clk 0:02:05.3]} 20. exd4 {[%clk 0:02:23.3]} 20... Qxd4+ {[%clk 0:02:05.5]}
21. Kh2 {[%clk 0:02:20]} 21... Bc6 {[%clk 0:02:03.3]} 22. Ne4 {[%clk 0:02:13]}
22... Nd5 {[%clk 0:01:56]} 23. Rf3 {[%clk 0:01:27.4]} 23... Bb5 {[%clk
0:01:36.7]} 24. Rd1 {[%clk 0:00:49]} 24... Bxd3 {[%clk 0:01:31.2]} 25. Rdxd3
{[%clk 0:00:49.5]} 25... Qb6 {[%clk 0:01:30.2]} 26. Rg3 {[%clk 0:00:39.2]} 26...
Rc1 {[%clk 0:01:27.7]} 27. Rgf3 {[%clk 0:00:13.3]} 27... Rfc8 {[%clk 0:01:16.9]}
28. Nc3 {[%clk 0:00:07.8]} 28... Qg1+ {[%clk 0:01:15.4]} 29. Kg3 {[%clk
0:00:08.3]} 29... Ne7 {[%clk 0:00:55.8]} 30. Rd7 {[%clk 0:00:08.1]} 30... Re1
{[%clk 0:00:50.6]} 31. Qd2 {[%clk 0:00:05.1]} 31... Nf5+ {[%clk 0:00:50.4]} 32.
Kg4 {[%clk 0:00:06.3]} 32... Rf1 {[%clk 0:00:22.7]} 33. Rd8+ {[%clk 0:00:06.9]}
33... Rxd8 {[%clk 0:00:22.6]} 34. Qxd8+ {[%clk 0:00:08.8]} 34... Kh7 {[%clk
0:00:23.6]} 35. Rxf1 {[%clk 0:00:07.5]} 35... Qxg2+ {[%clk 0:00:23.2]} 36. Kh5
{[%clk 0:00:07.9]} 36... g6# {[%clk 0:00:23.3]} 0-1

[Event "*** Titled Tuesday Blitz"]
[Site "Chess.com"]
[Date "2019.10.01"]
[Round "4"]
[White "Zarikovs1999"]
[Black "Komissarov_alex"]
[Result "1-0"]
[WhiteElo "2412"]
[BlackElo "1915"]
[TimeControl "180+2"]
[EndTime "13:55:56 PDT"]
[Termination "Zarikovs1999 won on time"]

1. e4 {[%clk 0:03:01.9]} 1... e5 {[%clk 0:02:51.5]} 2. Nf3 {[%clk 0:02:59.8]}
2... Nc6 {[%clk 0:02:49]} 3. Bb5 {[%clk 0:03:01.1]} 3... a6 {[%clk 0:02:46]} 4.
Ba4 {[%clk 0:03:02.1]} 4... Nf6 {[%clk 0:02:46]} 5. O-O {[%clk 0:03:03.3]} 5...
Bc5 {[%clk 0:02:47.4]} 6. d3 {[%clk 0:03:01.4]} 6... b5 {[%clk 0:02:44.7]} 7.
Bb3 {[%clk 0:03:02]} 7... O-O {[%clk 0:02:46]} 8. Nc3 {[%clk 0:03:01.5]} 8... d6
{[%clk 0:02:44.2]} 9. a3 {[%clk 0:02:54.1]} 9... Bg4 {[%clk 0:02:40.2]} 10. Be3
{[%clk 0:02:52.3]} 10... Kh8 {[%clk 0:02:21.6]} 11. Bxc5 {[%clk 0:02:50.3]}
11... dxc5 {[%clk 0:02:21.2]} 12. h3 {[%clk 0:02:40.4]} 12... Bh5 {[%clk
0:02:10.7]} 13. g4 {[%clk 0:02:38.3]} 13... Nxg4 {[%clk 0:02:08.1]} 14. hxg4
{[%clk 0:02:40.2]} 14... Bxg4 {[%clk 0:02:08]} 15. Re1 {[%clk 0:01:43.8]} 15...
Nd4 {[%clk 0:01:58.3]} 16. Re3 {[%clk 0:01:44.8]} 16... f5 {[%clk 0:01:55.5]}
17. exf5 {[%clk 0:01:42.9]} 17... Rxf5 {[%clk 0:01:51.9]} 18. Nxd4 {[%clk
0:01:44.3]} 18... cxd4 {[%clk 0:01:39.4]} 19. Qxg4 {[%clk 0:01:41.2]} 19... Rg5
{[%clk 0:01:35.8]} 20. Qxg5 {[%clk 0:01:42.3]} 20... Qxg5+ {[%clk 0:01:32.7]}
21. Rg3 {[%clk 0:01:44.2]} 21... Qf4 {[%clk 0:01:21.1]} 22. Re1 {[%clk
0:01:40.9]} 22... dxc3 {[%clk 0:01:11.5]} 23. bxc3 {[%clk 0:01:25]} 23... Rf8
{[%clk 0:01:04.6]} 24. Re2 {[%clk 0:01:25]} 24... Qc1+ {[%clk 0:00:55.4]} 25.
Kg2 {[%clk 0:01:26.1]} 25... Qxa3 {[%clk 0:00:54.8]} 26. Rxe5 {[%clk 0:01:23.7]}
26... Qd6 {[%clk 0:00:54.6]} 27. d4 {[%clk 0:01:21.7]} 27... c6 {[%clk
0:00:50.5]} 28. Be6 {[%clk 0:01:17.5]} 28... a5 {[%clk 0:00:46.2]} 29. Rge3
{[%clk 0:01:18.3]} 29... a4 {[%clk 0:00:43.6]} 30. Bf5 {[%clk 0:01:17]} 30... a3
{[%clk 0:00:40.2]} 31. Be6 {[%clk 0:01:18.4]} 31... Re8 {[%clk 0:00:32.4]} 32.
Bf7 {[%clk 0:01:16.2]} 32... Rxe5 {[%clk 0:00:28.3]} 33. dxe5 {[%clk 0:01:18.1]}
33... Qe7 {[%clk 0:00:26.5]} 34. Ba2 {[%clk 0:01:18.7]} 34... c5 {[%clk
0:00:23.5]} 35. c4 {[%clk 0:01:15.2]} 35... b4 {[%clk 0:00:22.9]} 36. e6 {[%clk
0:01:16.7]} 36... Qg5+ {[%clk 0:00:20.6]} 37. Kf1 {[%clk 0:01:16.2]} 37... Qe7
{[%clk 0:00:20.3]} 38. c3 {[%clk 0:01:17.6]} 38... Kg8 {[%clk 0:00:16.6]} 39.
cxb4 {[%clk 0:01:14.7]} 39... cxb4 {[%clk 0:00:15.7]} 40. c5 {[%clk 0:01:16.1]}
40... Kf8 {[%clk 0:00:10.6]} 41. Bb3 {[%clk 0:01:09.8]} 41... Qxc5 {[%clk
0:00:04.8]} 42. Re4 {[%clk 0:00:53.3]} 1-0

[Event "*** Titled Tuesday Blitz"]
[Site "Chess.com"]
[Date "2019.10.01"]
[Round "4"]
[White "Darhild"]
[Black "kacprekt"]
[Result "1-0"]
[WhiteElo "2631"]
[BlackElo "2398"]
[TimeControl "180+2"]
[EndTime "13:56:19 PDT"]
[Termination "Darhild won by resignation"]

1. e4 {[%clk 0:03:01.9]} 1... c6 {[%clk 0:02:57.4]} 2. Nc3 {[%clk 0:02:59.1]}
2... d5 {[%clk 0:02:56.7]} 3. Nf3 {[%clk 0:03:00.6]} 3... Nf6 {[%clk 0:02:57.3]}
4. e5 {[%clk 0:02:59.2]} 4... Ne4 {[%clk 0:02:58.5]} 5. Ne2 {[%clk 0:02:58.9]}
5... Qb6 {[%clk 0:02:59.2]} 6. d4 {[%clk 0:03:00.1]} 6... e6 {[%clk 0:02:54.3]}
7. Nfg1 {[%clk 0:03:01]} 7... f6 {[%clk 0:02:52]} 8. f3 {[%clk 0:03:02.1]} 8...
Ng5 {[%clk 0:02:53.3]} 9. Nc3 {[%clk 0:03:03.4]} 9... c5 {[%clk 0:02:49]} 10. f4
{[%clk 0:02:35.7]} 10... Ne4 {[%clk 0:02:46.3]} 11. Nxe4 {[%clk 0:02:23.2]}
11... dxe4 {[%clk 0:02:46.6]} 12. d5 {[%clk 0:02:08.2]} 12... exd5 {[%clk
0:02:38.7]} 13. Qxd5 {[%clk 0:02:07.2]} 13... Qc6 {[%clk 0:02:18.4]} 14. Bc4
{[%clk 0:01:56.2]} 14... Qxd5 {[%clk 0:02:10.2]} 15. Bxd5 {[%clk 0:01:58.1]}
15... f5 {[%clk 0:02:11.4]} 16. Be3 {[%clk 0:01:57.6]} 16... Nd7 {[%clk
0:02:08.2]} 17. Ne2 {[%clk 0:01:49.2]} 17... Nb6 {[%clk 0:02:09.3]} 18. Nc3
{[%clk 0:01:50.6]} 18... Be7 {[%clk 0:01:55.2]} 19. O-O-O {[%clk 0:01:48.4]}
19... Rb8 {[%clk 0:01:51]} 20. Nb5 {[%clk 0:01:09.5]} 20... Nxd5 {[%clk
0:01:44.3]} 21. Rxd5 {[%clk 0:01:11.4]} 21... Be6 {[%clk 0:01:38.8]} 22. Nd6+
{[%clk 0:01:05.4]} 22... Kd7 {[%clk 0:01:24.7]} 23. Rxc5 {[%clk 0:01:03.4]}
23... b6 {[%clk 0:01:07.1]} 24. Rc3 {[%clk 0:00:58]} 24... Bxd6 {[%clk
0:00:55.5]} 25. Rd1 {[%clk 0:00:57.6]} 25... Rb7 {[%clk 0:00:51.3]} 26. Rxd6+
{[%clk 0:00:53.1]} 26... Ke7 {[%clk 0:00:52.7]} 27. a4 {[%clk 0:00:53.9]} 27...
Rd8 {[%clk 0:00:51.5]} 28. Rxd8 {[%clk 0:00:36.8]} 28... Kxd8 {[%clk 0:00:53.4]}
29. Rc6 {[%clk 0:00:38.2]} 29... Ke7 {[%clk 0:00:53.1]} 30. Bd2 {[%clk
0:00:25.8]} 30... a6 {[%clk 0:00:30.5]} 31. Be3 {[%clk 0:00:24]} 31... Bd7
{[%clk 0:00:22.4]} 32. Rd6 {[%clk 0:00:17.4]} 32... Bxa4 {[%clk 0:00:21.3]} 33.
Bxb6 {[%clk 0:00:18.8]} 33... h6 {[%clk 0:00:15.7]} 34. Bd8+ {[%clk 0:00:14]}
34... Kf7 {[%clk 0:00:14.7]} 35. e6+ {[%clk 0:00:13.5]} 35... Ke8 {[%clk
0:00:16.1]} 36. Bh4 {[%clk 0:00:10.1]} 36... Rb8 {[%clk 0:00:14.4]} 37. Rxa6
{[%clk 0:00:10.7]} 37... Bb5 {[%clk 0:00:13.9]} 38. Ra7 {[%clk 0:00:11]} 38...
g5 {[%clk 0:00:13.6]} 39. fxg5 {[%clk 0:00:10.5]} 39... hxg5 {[%clk 0:00:15.5]}
40. Bxg5 {[%clk 0:00:12]} 40... Bc4 {[%clk 0:00:15]} 41. Rh7 {[%clk 0:00:11.1]}
41... Bxe6 {[%clk 0:00:04.4]} 42. Rh8+ {[%clk 0:00:12.1]} 42... Kf7 {[%clk
0:00:06.3]} 43. Rxb8 {[%clk 0:00:13.2]} 43... Kg6 {[%clk 0:00:08.2]} 44. Bf4
{[%clk 0:00:14.2]} 1-0

[Event "*** Titled Tuesday Blitz"]
[Site "Chess.com"]
[Date "2019.10.01"]
[Round "4"]
[White "dragos420"]
[Black "riconaipe"]
[Result "1-0"]
[WhiteElo "2369"]
[BlackElo "2614"]
[TimeControl "180+2"]
[EndTime "13:56:23 PDT"]
[Termination "dragos420 won by resignation"]

1. e4 {[%clk 0:03:01.9]} 1... c6 {[%clk 0:02:58.6]} 2. c4 {[%clk 0:03:00.9]}
2... d5 {[%clk 0:03:00.5]} 3. cxd5 {[%clk 0:03:02.8]} 3... cxd5 {[%clk
0:03:01.7]} 4. exd5 {[%clk 0:03:04.7]} 4... Nf6 {[%clk 0:03:02.2]} 5. Nc3 {[%clk
0:02:59.5]} 5... Nxd5 {[%clk 0:03:03.1]} 6. Nf3 {[%clk 0:02:57.5]} 6... g6
{[%clk 0:03:01.6]} 7. Bb5+ {[%clk 0:02:49.7]} 7... Nc6 {[%clk 0:03:01.8]} 8. Qa4
{[%clk 0:02:42.4]} 8... Nb6 {[%clk 0:02:37]} 9. Bxc6+ {[%clk 0:02:38.9]} 9...
bxc6 {[%clk 0:02:38.9]} 10. Qxc6+ {[%clk 0:02:40]} 10... Bd7 {[%clk 0:02:40.2]}
11. Qe4 {[%clk 0:02:41.6]} 11... Bg7 {[%clk 0:02:40.7]} 12. d4 {[%clk
0:02:41.8]} 12... O-O {[%clk 0:02:37.3]} 13. O-O {[%clk 0:02:42.3]} 13... Bf5
{[%clk 0:02:35.7]} 14. Qh4 {[%clk 0:02:31.8]} 14... Rc8 {[%clk 0:02:19]} 15. Bh6
{[%clk 0:02:31.8]} 15... Nc4 {[%clk 0:02:15.6]} 16. Bxg7 {[%clk 0:02:02.5]}
16... Kxg7 {[%clk 0:02:17.5]} 17. b3 {[%clk 0:01:56.4]} 17... Nb2 {[%clk
0:01:50.5]} 18. Ne4 {[%clk 0:01:44.4]} 18... e5 {[%clk 0:01:43.1]} 19. Qg3
{[%clk 0:01:12.9]} 19... exd4 {[%clk 0:01:35.5]} 20. Nd6 {[%clk 0:01:10.9]}
20... Rc5 {[%clk 0:01:21.2]} 21. Nxd4 {[%clk 0:01:10.4]} 21... Bd3 {[%clk
0:00:58.4]} 22. Rfd1 {[%clk 0:00:50.5]} 22... Nxd1 {[%clk 0:00:41.4]} 23. Rxd1
{[%clk 0:00:50]} 23... Qf6 {[%clk 0:00:14.9]} 24. Qxd3 {[%clk 0:00:44]} 24...
Rd8 {[%clk 0:00:15.9]} 25. N4b5 {[%clk 0:00:13.5]} 25... Rxb5 {[%clk 0:00:14.2]}
26. Qxb5 {[%clk 0:00:13.3]} 26... Rxd6 {[%clk 0:00:15.4]} 27. Rxd6 {[%clk
0:00:13.7]} 27... Qxd6 {[%clk 0:00:17.3]} 28. h3 {[%clk 0:00:14.5]} 28... Qf6
{[%clk 0:00:19.2]} 29. Qc5 {[%clk 0:00:14.8]} 29... a6 {[%clk 0:00:19.9]} 30. a4
{[%clk 0:00:15.1]} 30... Qe6 {[%clk 0:00:21.1]} 31. b4 {[%clk 0:00:15.9]} 31...
Kf6 {[%clk 0:00:18.5]} 32. Qd4+ {[%clk 0:00:17]} 32... Qe5 {[%clk 0:00:17.6]}
33. Qxe5+ {[%clk 0:00:12]} 33... Kxe5 {[%clk 0:00:19.5]} 34. Kh2 {[%clk
0:00:13.3]} 34... Kd4 {[%clk 0:00:20.3]} 35. Kg3 {[%clk 0:00:14.8]} 35... Kc4
{[%clk 0:00:20.4]} 36. b5 {[%clk 0:00:16.3]} 36... axb5 {[%clk 0:00:21.7]} 37.
axb5 {[%clk 0:00:18.2]} 37... Kxb5 {[%clk 0:00:23.2]} 38. Kf4 {[%clk 0:00:20.1]}
38... f6 {[%clk 0:00:24.6]} 39. g4 {[%clk 0:00:19]} 39... Kc5 {[%clk 0:00:21.8]}
40. g5 {[%clk 0:00:19.6]} 40... Kd6 {[%clk 0:00:08.1]} 41. gxf6 {[%clk
0:00:19.8]} 41... Ke6 {[%clk 0:00:09.5]} 42. Kg5 {[%clk 0:00:20.5]} 42... Kf7
{[%clk 0:00:07.8]} 43. f4 {[%clk 0:00:19.7]} 43... Ke6 {[%clk 0:00:08.8]} 44. h4
{[%clk 0:00:18.5]} 44... h6+ {[%clk 0:00:06]} 45. Kxg6 {[%clk 0:00:18.5]} 1-0